bitfinex/quotes_ETHUSD_20251018
["timestamp","ask_amount","ask_price","bid_price","bid_amount"]
[1760820108177,15.8422772,3902.1,3902.0,0.002]
[1760820108543,15.1661732,3902.1,3902.0,0.002]
[1760820109256,10.297026,3902.1,3902.0,0.002]
[1760820110265,11.207303,3902.1,3902.0,0.002]
[1760820110460,5.326374,3902.1,3902.0,0.002]
[1760820110663,7.555902,3902.1,3902.0,0.002]
[1760820110868,7.5966252,3902.1,3902.0,0.002]
[1760820111176,5.4291752,3902.1,3902.0,0.4418]
[1760820111384,4.7955752,3902.1,3902.0,0.4418]
[1760820111757,5.4291752,3902.1,3902.0,0.4418]
[1760820112387,5.47384398,3902.1,3902.0,0.4418]
[1760820113286,5.57614398,3902.1,3902.0,0.002]
[1760820113485,22.98877398,3902.1,3902.0,0.002]
[1760820113791,17.45407361,3902.1,3902.0,0.002]
[1760820114159,16.47091361,3902.1,3902.0,0.002]
[1760820114488,17.93075661,3902.1,3902.0,0.002]
[1760820114684,17.49021261,3902.1,3902.0,0.002]
[1760820115186,12.19302861,3902.1,3902.0,0.002]
[1760820115584,12.21683161,3902.1,3902.0,0.002]
[1760820116178,11.60576461,3902.1,3902.0,0.002]
[1760820116568,14.02260461,3902.1,3902.0,0.002]
[1760820116990,14.12490461,3902.1,3902.0,0.002]
[1760820117554,15.46629783,3902.1,3902.0,0.002]
[1760820118360,12.84686483,3902.1,3902.0,0.002]
[1760820118576,8.15243583,3902.1,3902.0,0.002]
[1760820118756,12.46092283,3902.1,3902.0,0.002]
[1760820118962,12.56322283,3902.1,3902.0,0.002]
[1760820119457,12.46092283,3902.1,3902.0,0.002]
[1760820119661,13.60343383,3902.1,3902.0,0.002]
[1760820120361,13.70573383,3902.1,3902.0,0.002]
[1760820120563,13.75040453,3902.1,3902.0,0.002]
[1760820120765,16.62142153,3902.1,3902.0,0.002]
[1760820121361,14.86897753,3902.1,3902.0,0.002]
[1760820121600,9.28441553,3902.1,3902.0,0.002]
[1760820121769,5.07279453,3902.1,3902.0,0.002]
[1760820121975,9.28708353,3902.1,3902.0,0.002]
[1760820122399,9.28658233,3902.1,3902.0,0.002]
[1760820122995,20.76298633,3902.1,3902.0,0.002]
[1760820123692,20.66068633,3902.1,3902.0,0.002]
[1760820123993,15.34576233,3902.1,3902.0,0.002]
[1760820124197,8.30924333,3902.1,3902.0,0.002]
[1760820125098,13.90525033,3902.1,3902.0,0.002]
[1760820126066,17.10756133,3902.1,3902.0,0.002]
[1760820126468,15.27012233,3902.1,3902.0,0.002]
[1760820126668,15.6721552,3902.1,3902.0,0.002]
[1760820127188,17.0979982,3902.1,3902.0,0.002]
[1760820127368,13.1438992,3902.1,3902.0,0.002]
[1760820128270,15.1107642,3902.1,3902.0,0.002]
[1760820128495,14.1107642,3902.1,3902.0,0.002]
[1760820128882,12.6539512,3902.1,3902.0,0.002]
[1760820129303,13.0899512,3902.1,3902.0,0.002]
[1760820129870,5.3720262,3902.1,3902.0,0.4743]
[1760820131697,22.5835522,3902.1,3902.0,0.002]
[1760820132014,21.9828102,3902.1,3902.0,0.002]
[1760820132215,20.8527782,3902.1,3902.0,0.002]
[1760820132375,19.9516802,3902.1,3902.0,0.002]
[1760820133203,5.3720262,3902.1,3902.0,0.002]
[1760820133407,20.3276342,3902.1,3902.0,0.002]
[1760820133608,19.92560133,3902.1,3902.0,0.002]
[1760820134017,19.51422233,3902.1,3902.0,0.002]
[1760820134192,4.96999333,3902.1,3902.0,0.002]
[1760820134396,19.50937133,3902.1,3902.0,0.002]
[1760820134793,19.91497628,3902.1,3902.0,0.002]
[1760820135000,20.24501153,3902.1,3902.0,0.002]
[1760820135299,24.81611853,3902.1,3902.0,0.002]
[1760820136390,24.81637453,3902.1,3902.0,0.002]
[1760820136792,25.2184173,3902.1,3902.0,0.002]
[1760820137402,6.1076763,3902.1,3902.0,0.002]
[1760820137614,25.1161173,3902.1,3902.0,0.002]
[1760820137821,24.2313723,3902.1,3902.0,0.002]
[1760820138120,22.7967613,3902.1,3902.0,0.002]
[1760820138500,25.2358253,3902.1,3902.0,0.002]
[1760820138912,19.83526605,3902.1,3902.0,0.002]
[1760820139112,19.79059535,3902.1,3902.0,0.002]
[1760820139490,20.01832035,3902.1,3902.0,0.002]
[1760820139820,19.05997535,3902.1,3902.0,0.002]
[1760820140391,6.10297035,3902.1,3902.0,0.002]
[1760820140590,23.26505235,3902.1,3902.0,0.002]
[1760820141122,22.57109935,3902.1,3902.0,0.002]
[1760820141527,6.10297035,3902.1,3902.0,0.002]
[1760820141697,23.26742435,3902.1,3902.0,0.002]
[1760820142017,22.33106835,3902.1,3902.0,0.002]
[1760820142415,22.37573971,3902.1,3902.0,0.002]
[1760820142607,22.67144571,3902.1,3902.0,0.002]
[1760820142806,22.56914571,3902.1,3902.0,0.002]
[1760820143725,21.97440494,3902.1,3902.0,0.002]
[1760820144729,5.74559894,3902.1,3902.0,0.002]
[1760820144925,22.16710194,3902.1,3902.0,0.002]
[1760820145105,20.97440494,3902.1,3902.0,0.002]
[1760820146227,19.35931694,3902.1,3902.0,0.002]
[1760820146426,17.60287994,3902.1,3902.0,0.002]
[1760820146726,14.92454294,3902.1,3902.0,0.002]
[1760820146924,15.32658259,3902.1,3902.0,0.002]
[1760820147230,13.32658259,3902.1,3902.0,0.002]
[1760820148101,20.11604559,3902.1,3902.0,0.002]
[1760820148332,18.23109259,3902.1,3902.0,0.002]
[1760820148799,16.12073259,3902.1,3902.0,0.002]
[1760820149001,11.02791759,3902.1,3902.0,0.002]
[1760820149202,9.55945159,3902.1,3902.0,0.002]
[1760820150232,19.12090359,3902.1,3902.0,0.002]
[1760820150734,18.86812359,3902.1,3902.0,0.002]
[1760820151103,19.05079459,3902.1,3902.0,0.002]
[1760820151298,17.76829459,3902.1,3902.0,0.002]
[1760820152128,5.67533859,3902.1,3902.0,0.002]
[1760820152333,17.76829459,3902.1,3902.0,0.002]
[1760820152567,15.83596664,3902.1,3902.0,0.002]
[1760820153132,4.96999399,3902.1,3902.0,0.4743]
[1760820153431,9.81545999,3902.1,3902.0,0.4743]
[1760820154130,4.92532263,3902.1,3902.0,0.4743]
[1760820156551,4.96999179,3902.1,3902.0,0.4743]
[1760820157538,4.96249179,3902.1,3902.0,0.4743]
[1760820158316,4.91782263,3902.1,3902.0,0.4743]
[1760820161356,4.96249177,3902.1,3902.0,0.4743]
[1760820164138,4.96249177,3902.1,3902.0,0.4473]
[1760820167579,4.91782263,3902.1,3902.0,0.4473]
[1760820168259,5.31982258,3902.1,3902.0,0.4473]
[1760820170330,0.44766725,3902.1,3902.0,0.4473]
[1760820172153,3.01038988,3902.1,3902.0,0.4473]
[1760820172994,0.44766725,3902.1,3902.0,0.4473]
[1760820173151,0.57566725,3902.1,3902.0,0.4473]
[1760820173493,0.1736673,3902.1,3902.0,0.4473]
[1760820180292,0.0456673,3902.1,3902.0,0.4473]
[1760820180597,0.0456673,3902.1,3902.0,0.74832274]
[1760820180770,0.001,3902.1,3902.0,0.4473]
[1760820181861,0.001,3902.1,3902.0,0.002]
[1760820182168,0.001,3902.1,3902.0,0.4473]
[1760820183468,0.04566293,3902.1,3902.0,0.4473]
[1760820187582,0.001,3902.1,3902.0,0.4473]
[1760820195589,0.001,3902.1,3902.0,3.13808831]
[1760820195787,0.001,3902.1,3902.0,0.74796118]
[1760820196228,0.001,3902.1,3902.0,0.30266118]
[1760820196441,0.001,3902.1,3902.0,0.002]
[1760820201725,0.1033,3902.1,3902.0,0.002]
[1760820202122,2.66602263,3902.1,3902.0,0.002]
[1760820202312,2.79402263,3902.1,3902.0,0.002]
[1760820203723,0.2313,3902.1,3902.0,0.002]
[1760820203912,0.129,3902.1,3902.0,0.002]
[1760820206014,0.17366381,3902.1,3902.0,0.002]
[1760820207038,2.83868644,3902.1,3902.0,0.002]
[1760820207549,2.79402263,3902.1,3902.0,0.002]
[1760820210662,2.83868694,3902.1,3902.0,0.002]
[1760820212463,0.17366431,3902.1,3902.0,0.002]
[1760820216565,2.73638694,3902.1,3902.0,0.002]
[1760820217336,0.17366431,3902.1,3902.0,0.002]
[1760820224739,0.04566431,3902.1,3902.0,3.00958831]
[1760820224944,0.04566431,3902.1,3902.0,1.00404998]
[1760820225354,0.001,3902.1,3902.0,1.00404998]
[1760820225968,0.001,3902.1,3902.0,3.56683829]
[1760820227985,0.04566136,3902.1,3902.0,3.56683829]
[1760820228970,0.001,3902.1,3902.0,3.56683829]
[1760820229163,0.001,3902.1,3902.0,3.69483829]
[1760820231272,0.001,3902.1,3902.0,1.13204998]
[1760820233079,0.001,3902.1,3902.0,3.69483829]
[1760820233972,0.04566085,3902.1,3902.0,3.69483829]
[1760820237088,0.001,3902.1,3902.0,3.69483829]
[1760820237271,0.04566077,3902.1,3902.0,3.69483829]
[1760820237652,0.001,3902.1,3902.0,3.69483829]
[1760820238584,0.001,3902.1,3902.0,7.52239638]
[1760820241993,0.04565968,3902.1,3902.0,7.52239638]
[1760820242984,0.04565968,3902.1,3902.0,7.39439638]
[1760820243995,0.04565968,3902.1,3902.0,4.38680807]
[1760820244559,0.04565968,3902.1,3902.0,6.94959638]
[1760820245461,0.14795968,3902.1,3902.0,4.38680807]
[1760820245656,0.14795968,3902.1,3902.0,3.82955809]
[1760820247578,0.1033,3902.1,3902.0,3.82955809]
[1760820247990,0.0533,3902.1,3902.0,3.82955809]
[1760820249283,0.6346,3902.5,3902.0,3.82955809]
[1760820249569,0.6346,3902.5,3902.0,4.26125809]
[1760820249570,0.128,3902.2,3902.0,4.26125809]
[1760820249768,0.128,3902.2,3902.1,0.85782581]
[1760820249963,0.128,3902.2,3902.1,0.42612581]
[1760820251892,0.17266198,3902.2,3902.1,0.42612581]
[1760820252098,0.17266198,3902.2,3902.0,0.002]
[1760820252299,0.17366198,3902.2,3902.0,0.002]
[1760820252505,0.17366198,3902.2,3902.0,0.4337]
[1760820253405,0.17366198,3902.2,3902.1,2.99442263]
[1760820253776,0.04566198,3902.2,3902.1,2.99442263]
[1760820254474,0.04566198,3902.2,3902.1,3.93310505]
[1760820256007,0.04566198,3902.2,3902.1,1.37038242]
[1760820256300,0.04566198,3902.2,3902.1,0.93868242]
[1760820257870,0.04566198,3902.2,3902.1,3.93310505]
[1760820258594,0.04566198,3902.2,3902.1,0.93868242]
[1760820260300,0.04566198,3902.2,3902.1,3.93310505]
[1760820261067,0.001,3902.2,3902.1,3.93310505]
[1760820261881,0.001,3902.2,3902.1,3.50140505]
[1760820262087,0.001,3902.2,3902.1,8.01009036]
[1760820262409,0.001,3902.2,3902.1,7.98446314]
[1760820263613,0.04565975,3902.2,3902.1,7.98446314]
[1760820263914,0.04565975,3902.2,3902.1,4.15690505]
[1760820264072,0.04565975,3902.2,3902.1,4.18253227]
[1760820264278,0.04565975,3902.2,3902.1,4.31153227]
[1760820265112,0.04565975,3902.2,3902.1,4.28590505]
[1760820266497,0.04565975,3902.2,3902.1,1.06768242]
[1760820266808,0.04565975,3902.2,3902.1,0.129]
[1760820267008,0.04565975,3902.2,3902.1,2.69172263]
[1760820267305,0.04565975,3902.2,3902.1,0.129]
[1760820267506,0.04565975,3902.2,3902.0,6.52033443]
[1760820267876,0.04565975,3902.2,3902.1,2.99442263]
[1760820268082,0.04565975,3902.2,3902.1,3.60621311]
[1760820268491,0.04565975,3902.2,3902.1,3.73521311]
[1760820269295,0.04565975,3902.2,3902.1,3.73721311]
[1760820271613,0.04565975,3902.2,3902.1,3.71158589]
[1760820272412,0.04565975,3902.2,3902.1,3.73721311]
[1760820273739,0.04565975,3902.2,3902.1,3.86521311]
[1760820274015,0.04565975,3902.2,3902.1,7.66714398]
[1760820274722,0.04565975,3902.2,3902.1,7.23544398]
[1760820278525,0.04565975,3902.2,3902.1,7.69924398]
[1760820281030,0.04565975,3902.2,3902.1,7.23544398]
[1760820282330,0.09945975,3902.2,3902.1,7.23544398]
[1760820286509,0.04565975,3902.2,3902.1,7.23544398]
[1760820287946,0.04565975,3902.2,3902.1,7.69924398]
[1760820290921,0.04565975,3902.2,3902.1,7.23544398]
[1760820291123,0.04565975,3902.2,3902.1,6.64928072]
[1760820299248,0.04565975,3902.2,3902.1,7.11308072]
[1760820299854,0.04565975,3902.2,3902.1,6.64928072]
[1760820300443,0.04565975,3902.2,3902.1,7.34008072]
[1760820301246,0.04565975,3902.2,3902.1,6.87628072]
[1760820301449,0.04565975,3902.2,3902.1,4.45663566]
[1760820301755,0.04565975,3902.2,3902.1,4.48226288]
[1760820302960,0.04565975,3902.2,3902.1,4.45663566]
[1760820304869,0.04565975,3902.2,3902.1,6.18463566]
[1760820305042,0.001,3902.5,3902.4,4.29052562]
[1760820305246,0.001,3902.5,3902.4,5.6071278]
[1760820305452,0.001,3902.5,3902.4,13.32072188]
[1760820305650,0.001,3902.5,3902.4,13.42344256]
[1760820311748,0.001,3902.5,3902.4,14.05704256]
[1760820312473,1e-08,3902.9,3902.8,2.56226299]
[1760820312672,1e-08,3902.9,3902.8,12.00890862]
[1760820312975,1e-08,3902.9,3902.8,12.45930862]
[1760820313162,1e-08,3902.9,3902.8,12.5620177]
[1760820314976,1e-08,3902.9,3902.8,12.6900177]
[1760820315675,1e-08,3902.9,3902.8,13.3236177]
[1760820316374,1e-08,3902.9,3902.8,8.61999837]
[1760820316673,1e-08,3902.9,3902.8,13.3236177]
[1760820318975,1e-08,3902.9,3902.8,13.83381018]
[1760820320368,1e-08,3902.9,3902.8,19.65920818]
[1760820321187,1e-08,3903.4,3903.3,2.56193477]
[1760820321493,1e-08,3903.4,3903.3,7.54736692]
[1760820321707,1e-08,3903.4,3903.3,7.97214758]
[1760820321883,1e-08,3903.4,3903.3,8.07484347]
[1760820322405,1e-08,3903.4,3903.3,10.43644347]
[1760820323506,1e-08,3903.4,3903.3,9.98604347]
[1760820323704,1e-08,3903.4,3903.3,10.43644347]
[1760820326785,1e-08,3903.4,3903.3,4.64882414]
[1760820326989,1e-08,3903.4,3903.3,11.93744347]
[1760820331330,1e-08,3903.4,3903.3,12.06544347]
[1760820334423,1e-08,3903.4,3903.3,9.48044347]
[1760820334589,1e-08,3903.4,3903.3,12.06444347]
[1760820335722,1e-08,3903.4,3903.3,12.06644347]
[1760820336627,1e-08,3903.4,3903.3,4.77882414]
[1760820336931,0.09900001,3903.4,3903.3,4.77882414]
[1760820338630,1e-08,3903.4,3903.3,4.77882414]
[1760820338842,1e-08,3903.4,3903.3,4.52263066]
[1760820338843,0.09900001,3903.4,3903.3,4.52263066]
[1760820341725,1e-08,3903.4,3903.3,4.52263066]
[1760820341939,1e-08,3903.4,3903.3,4.54825]
[1760820344036,1e-08,3903.4,3903.3,4.52263066]
[1760820344640,1e-08,3903.4,3903.3,5.1030953]
[1760820344944,1e-08,3903.4,3903.3,5.12871464]
[1760820345442,1e-08,3903.4,3903.3,5.1030953]
[1760820345651,1e-08,3903.4,3903.3,4.39463066]
[1760820345809,0.09960001,3903.4,3903.3,4.39463066]
[1760820348412,1e-08,3903.4,3903.3,4.42025]
[1760820348610,1e-08,3903.4,3903.3,4.39463066]
[1760820348815,1e-08,3903.4,3903.3,4.42025]
[1760820349116,1e-08,3903.4,3903.3,5.11847657]
[1760820349548,1e-08,3903.4,3903.3,5.09285723]
[1760820349847,1e-08,3903.4,3903.3,4.39463066]
[1760820350638,0.09960001,3903.4,3903.3,4.39463066]
[1760820355866,0.14424733,3903.4,3903.3,4.39463066]
[1760820356061,0.09960001,3903.4,3903.3,4.39463066]
[1760820356363,0.09960001,3903.4,3903.3,2.66663066]
[1760820356669,0.09960001,3903.4,3903.3,0.10469589]
[1760820356862,0.09960001,3903.4,3903.3,0.002]
[1760820357635,0.09960001,3903.4,3903.3,2.56393477]
[1760820359770,1e-08,3903.4,3903.3,2.56393477]
[1760820359969,0.04464811,3903.4,3903.3,2.56393477]
[1760820360184,0.04464811,3903.4,3903.3,2.69293477]
[1760820360538,0.04464811,3903.4,3903.3,2.71855411]
[1760820360791,1e-08,3903.4,3903.3,2.84655411]
[1760820362437,1e-08,3903.4,3903.3,3.28435411]
[1760820362639,1e-08,3903.4,3903.3,7.15435411]
[1760820362838,1e-08,3903.4,3903.3,7.12873477]
[1760820363284,1e-08,3903.4,3903.3,8.29361332]
[1760820365298,1e-08,3903.4,3903.3,10.02161332]
[1760820366158,1e-08,3903.4,3903.3,12.60561332]
[1760820373575,0.001,3903.7,3903.5,4.2898035]
[1760820373814,0.001,3903.7,3903.6,13.39489889]
[1760820373991,0.001,3903.7,3903.6,20.21089889]
[1760820374209,0.001,3903.7,3903.6,20.31358265]
[1760820376590,0.001,3905.0,3904.4,2.56121299]
[1760820376792,0.001,3905.0,3904.4,15.70195361]
[1760820377091,0.001,3905.0,3904.4,16.13795361]
[1760820377297,0.001,3905.0,3904.4,24.46820661]
[1760820377602,0.001,3905.0,3904.4,25.57723461]
[1760820377918,0.001,3905.0,3904.4,25.15731561]
[1760820379230,0.001,3905.0,3904.9,2.56088504]
[1760820379435,0.001,3905.0,3904.9,11.85720172]
[1760820379735,0.001,3905.0,3904.9,12.26759287]
[1760820381724,0.001,3905.0,3904.9,16.13759286]
[1760820381909,0.001,3905.0,3904.9,16.24024237]
[1760820382233,0.001,3905.0,3904.9,13.22124237]
[1760820382434,0.001,3905.0,3904.9,15.80424237]
[1760820385446,0.001,3905.0,3904.9,12.37024238]
[1760820385652,0.001,3905.4,3905.3,8.99224207]
[1760820385830,0.001,3905.4,3905.3,12.90333702]
[1760820386036,0.001,3905.4,3905.3,13.33933702]
[1760820386644,0.001,3905.4,3905.3,13.46733702]
[1760820386850,0.001,3905.4,3905.3,13.56997783]
[1760820389290,0.001,3905.4,3905.3,17.43997782]
[1760820390482,0.001,3905.4,3905.3,17.00397782]
[1760820390987,0.001,3905.4,3905.3,17.00297782]
[1760820393194,0.001,3905.4,3905.3,17.43897782]
[1760820393504,0.001,3905.4,3905.3,17.00297782]
[1760820393688,0.001,3905.4,3905.3,14.42097782]
[1760820393892,0.001,3905.4,3905.3,17.00297782]
[1760820394899,0.001,3905.4,3905.3,14.42097782]
[1760820395105,0.001,3905.4,3905.3,17.00297782]
[1760820395471,0.001,3905.4,3905.3,5.8473585]
[1760820395710,0.1024,3905.4,3904.9,3.86999999]
[1760820395866,0.001,3905.4,3905.3,2.56062274]
[1760820396571,0.1024,3905.4,3905.3,2.56062274]
[1760820398002,0.1024,3905.4,3905.2,0.2212]
[1760820398201,0.001,3905.4,3905.3,2.56062274]
[1760820398768,0.1024,3905.4,3905.2,0.2212]
[1760820398985,0.1014,3905.3,3905.0,1.728]
[1760820399183,0.1014,3905.3,3905.2,2.56068831]
[1760820399709,0.001,3905.4,3905.3,2.56062274]
[1760820400091,0.001,3905.4,3905.3,2.58622896]
[1760820400999,0.1024,3905.4,3905.3,2.58622896]
[1760820401202,0.1024,3905.4,3905.3,6.45622895]
[1760820401371,0.001,3905.4,3905.3,6.43062273]
[1760820403380,0.001,3905.4,3905.3,7.5291421]
[1760820403982,0.001,3905.4,3905.3,6.43062273]
[1760820404596,0.1024,3905.4,3905.3,6.43062273]
[1760820405283,0.001,3905.4,3905.3,6.43062273]
[1760820405484,0.001,3905.4,3905.3,6.5332833]
[1760820405684,0.001,3905.4,3905.3,6.6612833]
[1760820410022,0.1024,3905.4,3905.3,6.6612833]
[1760820410519,0.001,3905.4,3905.3,6.6612833]
[1760820411512,0.001,3905.4,3905.3,9.94501256]
[1760820411715,0.001,3905.4,3905.3,10.40771256]
[1760820412023,0.001,3905.4,3905.3,9.94501256]
[1760820416342,0.1036,3905.4,3905.0,0.002]
[1760820416542,0.1026,3905.3,3905.0,0.002]
[1760820420331,0.14722453,3905.3,3905.0,0.002]
[1760820421330,0.1026,3905.2,3905.0,2.56280647]
[1760820421532,0.1026,3905.2,3905.0,0.13]
[1760820421769,0.1026,3905.1,3905.0,3.99999999]
[1760820425152,0.04462453,3905.3,3905.0,6.56081945]
[1760820425380,0.14722453,3905.3,3905.0,6.56081945]
[1760820425976,0.14722453,3905.3,3905.0,3.99999999]
[1760820427757,0.14722453,3905.3,3905.1,3.86999999]
[1760820429695,0.04462453,3905.3,3905.2,3.02648831]
[1760820429983,0.04462453,3905.3,3905.2,0.15360688]
[1760820430185,0.04462453,3905.3,3905.2,2.71429519]
[1760820430487,0.001,3905.4,3905.2,2.71429519]
[1760820430691,0.001,3905.4,3905.3,2.56062274]
[1760820431087,0.001,3905.4,3905.2,0.15360688]
[1760820431873,0.001,3905.4,3905.2,0.128]
[1760820432075,0.1036,3905.4,3905.2,0.128]
[1760820432797,0.14822293,3905.4,3905.2,0.128]
[1760820433599,0.14822293,3905.4,3905.2,3.99799999]
[1760820433804,0.14822293,3905.4,3905.2,0.128]
[1760820434500,0.14822293,3905.4,3905.0,0.002]
[1760820434501,0.1026,3905.3,3905.0,0.002]
[1760820435079,0.1026,3905.2,3905.0,0.002]
[1760820435670,0.1026,3905.1,3905.0,0.002]
[1760820435870,3.29695388,3905.1,3905.0,0.002]
[1760820436391,5.53753888,3905.1,3905.0,0.002]
[1760820437093,8.61127588,3905.1,3905.0,0.002]
[1760820438007,8.82869588,3905.1,3905.0,0.002]
[1760820438998,8.72132688,3905.1,3905.0,0.002]
[1760820439192,9.12304149,3905.1,3905.0,0.002]
[1760820439505,10.85104149,3905.1,3905.0,0.002]
[1760820440110,8.69239649,3905.1,3905.0,0.002]
[1760820440407,5.42666849,3905.1,3905.0,0.002]
[1760820440593,7.74985749,3905.1,3905.0,0.002]
[1760820440794,7.80519449,3905.1,3905.0,0.002]
[1760820440993,5.42666849,3905.1,3905.0,0.002]
[1760820441413,7.59888249,3905.1,3905.0,0.002]
[1760820441616,5.47130307,3905.1,3905.0,0.002]
[1760820443614,4.73510307,3905.1,3905.0,0.002]
[1760820444115,0.04463458,3905.1,3905.0,0.002]
[1760820444318,0.04463458,3905.1,3905.0,0.4678]
[1760820444520,0.04463458,3905.1,3905.0,0.002]
[1760820445913,2.56101621,3904.7,3904.2,0.002]
[1760820446112,17.93567454,3904.7,3904.2,0.002]
[1760820446321,12.17018654,3904.7,3904.2,0.002]
[1760820446526,12.21483413,3904.7,3904.2,0.002]
[1760820447035,12.57193807,3904.7,3904.2,0.002]
[1760820450148,11.83523807,3904.7,3904.2,0.002]
[1760820450533,12.46883807,3904.7,3904.2,0.002]
[1760820451334,12.51348387,3904.7,3904.2,0.002]
[1760820451536,22.81750687,3904.7,3904.2,0.002]
[1760820451702,23.94197787,3904.7,3904.2,0.002]
[1760820452643,36.85469287,3904.7,3904.2,0.002]
[1760820452820,32.94855387,3904.7,3904.2,0.002]
[1760820453319,27.49749887,3904.7,3904.2,0.002]
[1760820453514,3.19487859,3904.3,3904.2,0.002]
[1760820453720,22.90760292,3904.3,3904.2,0.002]
[1760820454041,24.73870292,3904.3,3904.2,0.002]
[1760820454241,25.18516912,3904.3,3904.2,0.002]
[1760820454626,10.17606412,3904.3,3904.2,0.002]
[1760820454829,28.18102587,3904.3,3904.2,0.002]
[1760820455033,19.10967435,3903.9,3903.8,0.002]
[1760820455232,19.29917435,3903.9,3903.8,0.002]
[1760820455737,8.23871737,3903.9,3903.8,0.002]
[1760820455944,25.72922437,3903.9,3903.8,0.002]
[1760820456120,26.05170137,3903.9,3903.8,0.002]
[1760820456741,8.56119437,3903.9,3903.8,0.002]
[1760820456923,27.05091137,3903.9,3903.8,0.002]
[1760820457810,27.38381137,3903.9,3903.8,0.002]
[1760820458648,27.78568286,3903.9,3903.8,0.002]
[1760820458805,16.92724486,3903.9,3903.8,0.002]
[1760820459013,3.19553477,3903.3,3903.2,0.1843]
[1760820459848,3.5973974,3903.3,3903.2,0.1843]
[1760820460142,3.5973974,3903.3,3903.2,0.6579]
[1760820461456,2.56213169,3903.0,3902.5,0.002]
[1760820461624,2.56213169,3903.0,3902.5,0.4756]
[1760820461817,2.60678874,3903.0,3902.5,0.4756]
[1760820462353,2.60678874,3903.0,3902.5,0.002]
[1760820462515,2.60678874,3903.0,3902.9,0.4756]
[1760820464560,7.94400807,3903.0,3902.9,0.002]
[1760820471058,0.67825705,3903.0,3902.9,0.002]
[1760820471239,0.67825705,3903.0,3902.9,0.4756]
[1760820472031,3.24038874,3903.0,3902.9,0.4756]
[1760820475663,3.24038874,3903.0,3902.9,0.002]
[1760820479852,7.94400807,3903.0,3902.9,0.002]
[1760820482958,2.60678874,3903.0,3902.9,0.002]
[1760820483152,13.10729474,3903.0,3902.9,0.002]
[1760820483370,13.06263769,3903.0,3902.9,0.002]
[1760820483969,13.38511469,3903.0,3902.9,0.002]
[1760820484198,13.6808667,3903.0,3902.9,0.002]
[1760820484378,13.38511469,3903.0,3902.9,0.002]
[1760820485767,13.429775,3903.0,3902.9,0.002]
[1760820485970,13.83169293,3903.0,3902.9,0.002]
[1760820486972,10.13405062,3903.0,3902.9,0.002]
[1760820487298,9.73213269,3903.0,3902.9,0.002]
[1760820487796,11.46013269,3903.0,3902.9,0.002]
[1760820488001,19.41132569,3903.0,3902.9,0.002]
[1760820488203,18.04684169,3903.0,3902.9,0.002]
[1760820488703,18.37275923,3903.0,3902.9,0.002]
[1760820489000,13.1785823,3902.6,3902.5,0.002]
[1760820489303,18.20467863,3902.6,3902.5,0.002]
[1760820489501,18.35667863,3902.6,3902.5,0.002]
[1760820489882,10.10209063,3902.6,3902.5,0.002]
[1760820490082,19.48164463,3902.6,3902.5,0.002]
[1760820490302,19.52631365,3902.6,3902.5,0.002]
[1760820490508,19.92831382,3902.6,3902.5,0.002]
[1760820490824,19.37154082,3902.6,3902.5,0.002]
[1760820491027,18.82691882,3902.6,3902.5,0.002]
[1760820491429,18.29735382,3902.6,3902.5,0.002]
[1760820492228,19.42568582,3902.6,3902.5,0.002]
[1760820493236,19.65722838,3902.6,3902.5,0.002]
[1760820494135,20.30575038,3902.6,3902.5,0.002]
[1760820494518,19.87581738,3902.6,3902.5,0.002]
[1760820495126,19.25650121,3902.6,3902.5,0.002]
[1760820495727,2.56265696,3902.2,3902.1,0.002]
[1760820495924,2.56265696,3902.2,3901.6,0.002]
[1760820495925,4.92445399,3901.9,3901.6,0.002]
[1760820496237,26.54085099,3901.9,3901.6,0.002]
[1760820496528,26.80063802,3901.9,3901.6,0.002]
[1760820497330,27.12045002,3901.9,3901.6,0.002]
[1760820498539,16.50533302,3901.9,3901.6,0.002]
[1760820498837,12.96697903,3901.9,3901.6,0.002]
[1760820499022,12.96697903,3901.9,3901.8,0.4419]
[1760820499023,2.56285399,3901.9,3901.8,0.4419]
[1760820499227,10.05243655,3901.9,3901.8,0.002]
[1760820499402,11.04340558,3901.9,3901.8,0.002]
[1760820499604,11.14550558,3901.9,3901.8,0.002]
[1760820499918,20.786576,3901.7,3901.6,0.002]
[1760820500124,29.45620569,3901.7,3901.6,0.002]
[1760820500319,30.17083357,3901.7,3901.6,0.002]
[1760820501109,32.83493757,3901.7,3901.6,0.002]
[1760820502023,32.24955573,3901.7,3901.6,0.002]
[1760820502328,32.55395573,3901.7,3901.6,0.002]
[1760820502524,2.56428873,3899.8,3899.4,0.215]
[1760820502714,3.19783406,3899.8,3899.4,0.215]
[1760820502914,0.128,3899.5,3899.4,0.215]
[1760820503124,0.128,3899.5,3899.4,0.6549]
[1760820503329,0.7616,3899.5,3899.4,0.6549]
[1760820505746,0.128,3899.5,3899.4,0.6549]
[1760820505946,0.40224746,3899.7,3899.4,0.6549]
[1760820506151,0.40224746,3899.7,3899.5,0.4399]
[1760820506649,0.53024746,3899.7,3899.5,0.4399]
[1760820508022,0.128,3899.7,3899.5,0.4399]
[1760820508428,7.26733907,3900.6,3899.7,2.56428298]
[1760820508651,8.30314369,3900.6,3900.5,0.215]
[1760820508851,0.40220462,3900.6,3900.5,0.6549]
[1760820509047,1.03580462,3900.6,3900.5,0.6549]
[1760820510857,1.08048935,3900.6,3900.5,0.6549]
[1760820513558,0.67828473,3900.6,3900.5,0.6549]
[1760820514858,0.04468473,3900.6,3900.5,0.6549]
[1760820520058,0.04468473,3900.6,3900.5,0.4399]
[1760820523842,0.04468473,3900.6,3900.5,0.4419]
[1760820524770,0.04468473,3900.6,3900.5,0.4563]
[1760820527078,0.17268473,3900.6,3900.5,0.002]
[1760820527377,0.17268473,3900.6,3900.5,0.4563]
[1760820527579,0.128,3900.6,3900.5,0.4563]